Cogmind - Beta 13 @@@ ROGUE MODE // 2024.03.24 @ 12:09:56 Player: Oldman Pu Result: Destroyed by H-61 Shepherd with Heavy Assault Cannon Performance ------------- Evolutions (3) 1500 Regions Visited (4) 800 Robots Destroyed (103) 515 Value Destroyed (3073) 3073 Prototype IDs (9) 180 Alien Tech Used (0) 0 Bonus (340) 340 TOTAL SCORE: 6408 Bonus ------- High Alert Combat Kills 340 Cogmind --------- Core Integrity 0/700 Matter 237/300 Energy 160/160 System Corruption 9% Temperature Cool (-93) Movement Rolling (115) Ox1 Location -7/Factory Parts ------- > --- POWER (2) -------- Light Nuclear Core > --- PROPULSION (3) --- Armored Huge Wheel > --- UTILITY (5) ------ Cryofiber Web Improved Heat Sink Advanced Heat Sink Large Storage Unit > --- WEAPON (3) ------- Enhanced Autogun Advanced Assault Cannon > --- INVENTORY (15) --- Wheel Compact Wheel Compact Wheel Cryofiber Web Improved Heat Sink Precision Shock Rifle Particle Gun Pulse Rifle Gatling Laser Enhanced Autogun Enhanced Autogun Peak State ------------ > --- POWER ------------ Nuclear Core Improved Deuterium Engine > --- PROPULSION ------- Wheel Armored Huge Wheel > --- UTILITY ---------- Cryofiber Web Improved Heat Sink Improved Heat Sink Large Storage Unit Insulated Plating > --- WEAPON ----------- Cooled Pulse Rifle Enhanced Autogun Enhanced Autogun > --- INVENTORY -------- Deuterium Engine Nuclear Core Compact Wheel Compact Wheel Armored Huge Wheel Cryofiber Web Improved Heat Sink Precision Shock Rifle Beam Rifle Subdweller Laser Gatling Laser Cooled Pulse Rifle Enhanced Autogun Enhanced Autogun [Rating: 46] Favorites ----------- Power Improved Deuterium Engine Engine Improved Deuterium Engine Power Core Enhanced Nuclear Core Propulsion Compact Wheel Wheel Compact Wheel Utility Large Storage Unit Device Improved Heat Sink Storage Large Storage Unit Protection Hardened Light Armor Plating Weapon Cooled Pulse Rifle Energy Gun Cooled Pulse Rifle Energy Cannon Subdweller Beam Cannon Ballistic Gun Assault Rifle Ballistic Cannon Advanced Assault Cannon Build | -11 -10 -10 -9 -7 ------- Run | Yrd Mat Sub Rec Fac Slots Evolved 6 | . . . . 6 Power 1 | . . . . 1 Propulsion 1 | . . . . 1 Utility 3 | . . . . 3 Weapon 1 | . . . . 1 Parts Attached 117 | 6 13 17 7 74 Power 21 | 1 1 6 2 11 Engine 15 | 1 1 6 2 5 Core 6 | . . . . 6 Reactor . | . . . . . Propulsion 21 | 2 1 4 1 13 Treads . | . . . . . Leg . | . . . . . Wheel 21 | 2 1 4 1 13 Hover . | . . . . . Flight . | . . . . . Utility 35 | 1 5 1 1 27 Device 13 | . . . . 13 Storage 4 | 1 2 . . 1 Processor . | . . . . . Hackware . | . . . . . Protection 18 | . 3 1 1 13 Artifact . | . . . . . Weapon 40 | 2 6 6 3 23 Energy Gun 11 | . . 1 . 10 Energy Cannon 4 | . . 4 . . Ballistic Gun 24 | 2 6 1 3 12 Ballistic Cannon 1 | . . . . 1 Launcher . | . . . . . Special Weapon . | . . . . . Impact Weapon . | . . . . . Slashing Weapon . | . . . . . Piercing Weapon . | . . . . . Special Melee Weapon . | . . . . . Unidentified Prototypes 5 | . . . . 5 Parts Lost 31 | . 1 5 . 25 Power 6 | . . 1 . 5 Propulsion 9 | . 1 4 . 4 Utility 9 | . . . . 9 Weapon 7 | . . . . 7 Highest Loss Streak 5 | . 1 1 . 5 To Critical Strikes . | . . . . . Average Slot Usage (%) 91 | . 90 98 84 89 Engine 10 | . 13 13 14 7 Core 2 | . . . . 5 Wheel 19 | . 24 26 13 14 Device 6 | . . . . 13 Storage 10 | . 14 14 14 6 Protection 14 | . 10 14 14 15 Energy Gun 6 | . . 7 . 8 Energy Cannon 3 | . . 13 2 . Ballistic Gun 14 | . 27 7 25 12 Naked Turns . | . . . . . Heaviest Build 69 | 13 33 42 40 69 Greatest Support 48 | 26 26 30 20 48 Greatest Overweight (x) 13 | 3 1 4 13 5 Average Overweight (x) 1 | . . 1 1 1 Largest Inventory Capacity 15 | 8 15 15 15 15 Average Capacity 14 | 7 12 15 15 14 Most Carried 15 | . 15 15 15 15 Average Carried 13 | . 10 14 13 14 Final Capacity 15 | 8 15 15 15 15 Final Carried 15 | . 13 15 15 11 Class Distribution -------------------- 51% | Mutant 30% | Scavenger-Tank 13% | Tank 4% | Scavenger-Mutant Dominant Class ---------------- Mutant | -10/Materials Mutant | -10/Subcaves Mutant | -9/Recycling Scavenger-Tank | -7/Factory Resources | -11 -10 -10 -9 -7 ----------- Run | Yrd Mat Sub Rec Fac Matter Collected 2990 | 232 352 288 296 1822 Remotely . | . . . . . Salvage Created 4591 | . 509 422 664 2996 Parts 234 | . 33 31 27 143 Haulers Intercepted 8 | . 2 . . 6 Recyclers Shooed 14 | . . . 8 6 Parts Field Recycled . | . . . . . Retrieved Matter . | . . . . . Parts Self-Destructed 9 | . . 9 . . Prevented . | . . . . . Kills | -11 -10 -10 -9 -7 ------- Run | Yrd Mat Sub Rec Fac Combat Hostiles Destroyed 71 | . 13 11 5 42 Guns 61 | . 13 4 5 39 Cannons 8 | . . 7 . 1 Classes Destroyed 15 | . 4 3 2 6 Worker 3 | . . . . 3 Builder 3 | . . . . 3 Hauler 8 | . 2 . . 6 Recycler 12 | . . . 4 8 Turret 2 | . . 2 . . Watcher 4 | . 2 . . 2 Swarmer 20 | . 6 4 . 10 Grunt 23 | . 7 . 1 15 Brawler 1 | . . . . 1 Duelist 2 | . . . . 2 Protector 1 | . . . 1 . Sentry 10 | . . 1 3 6 Hunter 1 | . . . . 1 Programmer 7 | . . . . 7 Subdweller 6 | . . 6 . . Best Kill Streak 6 | . 4 6 3 6 Combat Bots Only 4 | . 4 4 3 4 Max Kills in Single Turn 2 | . 1 1 1 2 Gunslinging 1 | . . . . 1 Exploded . | . . . . . Melee . | . . . . . Uniques/NPCs Destroyed . | . . . . . Combat | -11 -10 -10 -9 -7 -------- Run | Yrd Mat Sub Rec Fac Hostile Shots Fired 659 | . 52 100 15 492 Missed 201 | . 16 30 1 154 Damage Taken 6053 | . 358 858 197 4640 Core 910 | . 67 97 43 703 Absorbed by Shields 77 | . . . . 77 Redirected to Shielding 81 | . . . . 81 Regen/Repaired (Parts) 322 | . . . . 322 Core Remaining (%) 58 | 100 . . 17 . Volleys Fired 336 | . 66 60 28 182 Largest 3 | . 2 2 2 3 Hottest 140 | . 40 140 105 125 Shots Fired 815 | . 132 113 55 515 Gun 732 | . 132 53 46 501 Cannon 83 | . . 60 9 14 Launcher . | . . . . . Special . | . . . . . Kinetic 496 | . 132 28 46 290 Thermal 313 | . . 85 9 219 Explosive . | . . . . . Electromagnetic 6 | . . . . 6 Robot Hit Streak 27 | . 15 11 9 27 Robot Miss Streak 4 | . 3 2 3 4 Penetration Max . | . . . . . Secondary Targets 8 | . 3 . . 5 Max Gunslinging Chain 2 | . 1 . . 2 Shots Hit Robots 533 | . 84 55 38 356 Core Hits 206 | . 33 20 16 137 Critical Kills 1 | . . . 1 . Critical Parts Destroyed 2 | . 1 . . 1 Critical Strikes 15 | . 1 1 1 12 Burn 10 | . . . . 10 Destroy 5 | . 1 1 1 2 Melee Attacks . | . . . . . Impact . | . . . . . Slashing . | . . . . . Piercing . | . . . . . Sneak Attacks . | . . . . . Combat Hostiles . | . . . . . Follow-up Attacks . | . . . . . Damage Inflicted 9284 | . 895 1133 577 6679 Guns 8140 | . 859 460 467 6354 Cannons 1108 | . . 673 110 325 Explosions 36 | . 36 . . . Melee . | . . . . . Ramming . | . . . . . Kinetic 5045 | . 859 233 467 3486 Thermal 4117 | . . 900 110 3107 Explosive . | . . . . . Electromagnetic 122 | . 36 . . 86 Impact . | . . . . . Slashing . | . . . . . Piercing . | . . . . . Highest Corruption 9 | . . . . 9 Average Corruption 4 | . . . . 4 Corruption Purged . | . . . . . Corruption Blocked . | . . . . . Effects 70 | . . . . 70 Message Errors 15 | . . . . 15 Matter Fused 19 | . . . . 19 Heat Flow Errors 9 | . . . . 9 Energy Discharges 11 | . . . . 11 Data Loss (minor) 5 | . . . . 5 Data Loss (major) 4 | . . . . 4 Misfires 1 | . . . . 1 Alerts 1 | . . . . 1 Weapon Failures 5 | . . . . 5 Overload Shots . | . . . . . Overflow Damage 14 | . . 4 10 . Projectiles 14 | . . 4 10 . Explosions . | . . . . . Melee . | . . . . . Knockbacks 5 | . . . . 5 Impact . | . . . . . Kinetic 3 | . . . . 3 Secondary 2 | . . . . 2 Self-Inflicted Damage 267 | . . . . 267 Shots 4 | . . . . 4 Rammed . | . . . . . Targets Rammed . | . . . . . Kicked . | . . . . . Crushed . | . . . . . Highest Temperature 692 | . 56 285 565 692 Average Temperature 90 | . 11 54 158 119 Received Heat Transfer 1260 | . 141 183 60 876 Effects 24 | . . . 15 9 Shutdowns 2 | . . . 2 . Energy Bleed 4 | . . . 3 1 Interference 3 | . . . . 3 Matter Decay 3 | . . . 3 . Short Circuit 3 | . . . 3 . Damage (minor) 2 | . . . 2 . Damage (major) 5 | . . . 2 3 Damage (core) 2 | . . . . 2 Siege Activations . | . . . . . Robots Corrupted 1 | . . . . 1 Combat Hostiles 1 | . . . . 1 Parts Fried . | . . . . . Impact Corruptions . | . . . . . Robots Melted 1 | . . . . 1 Combat Hostiles 1 | . . . . 1 Parts Melted 16 | . . 1 . 15 Heat Transferred 8134 | . . 1274 148 6712 Parts Sabotaged . | . . . . . Parts Stolen . | . . . . . Parts Stripped . | . . . . . Power Chain Reactions . | . . . . . Alert | -11 -10 -10 -9 -7 ------- Run | Yrd Mat Sub Rec Fac Peak Influence 862 | . 277 . 282 862 Initial 247 | . . . 247 63 Average 249 | . 115 . 196 306 Maximum Alert Level 3 | . 1 . 1 3 Low Security (%) 49 | 100 90 . 50 35 Level 1 28 | . 9 . 49 31 Level 2 16 | . . . . 25 Level 3 4 | . . . . 7 Level 4 . | . . . . . Level 5 . | . . . . . High Security . | . . . . . Max Security . | . . . . . Squads Dispatched 23 | . 3 . . 20 Investigation 5 | . 1 . . 4 Extermination 5 | . . . . 5 Reinforcement 5 | . 2 . . 3 Assault 2 | . . . . 2 Garrison 6 | . . . . 6 Intercept . | . . . . . Searches Triggered . | . . . . . Construction Impeded . | . . . . . Haulers Reinforced . | . . . . . Active Scanning Responses . | . . . . . Cargo Convoy Interrupts . | . . . . . Stealth | -11 -10 -10 -9 -7 --------- Run | Yrd Mat Sub Rec Fac Distress Signals 7 | . 2 . . 5 Communications Jammed . | . . . . . Distress Signals . | . . . . . Times Spotted 137 | . 26 36 6 69 Peak Tracking Total 6 | . 6 6 4 5 Tactical Retreats 12 | . 2 3 1 6 Traps | -11 -10 -10 -9 -7 ------- Run | Yrd Mat Sub Rec Fac Traps Triggered 8 | . 2 3 . 3 Indirectly . | . . . . . Trap Hack Attempts . | . . . . . Triggered . | . . . . . Disarmed . | . . . . . Reprogrammed . | . . . . . Reused . | . . . . . Traps Extracted . | . . . . . Installed . | . . . . . Triggered . | . . . . . Machines | -11 -10 -10 -9 -7 ---------- Run | Yrd Mat Sub Rec Fac Machines Disabled 7 | . 1 2 . 4 Max in Single Turn 2 | . 1 1 . 2 Garrison Access 1 | . . . . 1 Machines Repaired . | . . . . . Machines Dismantled . | . . . . . Machines Sabotaged . | . . . . . Overloaded Fab Kills . | . . . . . Hacking | -11 -10 -10 -9 -7 --------- Run | Yrd Mat Sub Rec Fac Machines Accessed 27 | . 5 . 7 15 Terminals 12 | . 4 . 2 6 Fabricators 2 | . . . . 2 Repair Stations 2 | . . . . 2 Recycling Units 8 | . 1 . 5 2 Scanalyzers 2 | . . . . 2 Garrison Access 1 | . . . . 1 Total Hacks 62 | . 10 . 13 39 Successful 40 | . 8 . 8 24 Failed 22 | . 2 . 5 15 Catastrophic 1 | . . . . 1 Database Lockouts . | . . . . . Manual . | . . . . . Terminals 28 | . 8 . 5 15 Fabricators 5 | . . . . 5 Repair Stations 3 | . . . . 3 Recycling Units 13 | . 2 . 8 3 Scanalyzers 12 | . . . . 12 Garrison Access 1 | . . . . 1 Terminal Hacks 14 | . 6 . 2 6 Record 4 | . 2 . . 2 Prototype ID Bank 2 | . 1 . 1 . Emergency Access Points 2 | . 1 . . 1 Alert Level 2 | . . . . 2 Locate Traps 2 | . 2 . . . Dispatch Records 1 | . . . 1 . Hauler Manifests 1 | . . . . 1 Fabricator Hacks 3 | . . . . 3 Load Schematic 2 | . . . . 2 Build 1 | . . . . 1 Repair Station Hacks 2 | . . . . 2 Scan Component 1 | . . . . 1 Repair 1 | . . . . 1 Recycling Unit Hacks 10 | . 2 . 6 2 Report Inventory 9 | . 1 . 6 2 Retrieve Components 1 | . 1 . . . Scanalyzer 10 | . . . . 10 Insert Component 5 | . . . . 5 Analyze 5 | . . . . 5 Garrison Access Hacks 1 | . . . . 1 Seal Access 1 | . . . . 1 Unauthorized Hacks . | . . . . . Terminals . | . . . . . Fabricators . | . . . . . Repair Stations . | . . . . . Recycling Units . | . . . . . Scanalyzers . | . . . . . Garrison Access . | . . . . . Data Cores Recovered . | . . . . . Used . | . . . . . Hacking Detections 18 | . 2 . 4 12 Full Trace Events 4 | . . . 1 3 Feedback Events . | . . . . . Feedback Blocked . | . . . . . Robot Schematics Acquired . | . . . . . Robots Built . | . . . . . Authchips . | . . . . . Time . | . . . . . Total Robot Build Rating . | . . . . . Part Schematics Acquired 4 | . . . . 4 Parts Built 2 | . . . . 2 Authchips . | . . . . . Time 84 | . . . . 84 Total Part Build Rating 8 | . . . . 8 Parts Repaired 1 | . . . . 1 Time 26 | . . . . 26 Parts Recycled . | . . . . . Recycled Matter . | . . . . . Retrieved Matter . | . . . . . Retrieved Components 2 | . 2 . . . Parts Scanalyzed 4 | . . . . 4 Part Schematics Acquired 4 | . . . . 4 Parts Damaged . | . . . . . Bothacking | -11 -10 -10 -9 -7 ------------ Run | Yrd Mat Sub Rec Fac Used RIF Installer . | . . . . . Robots Hacked . | . . . . . Non-combat . | . . . . . Combat . | . . . . . Robot Hacks Applied . | . . . . . Relay Couplers Released 6 | . . . . 6 Programmers 6 | . . . . 6 Fabnet Peak Effective % . | . . . . . Robots Rewired . | . . . . . Allies Hacked . | . . . . . Hacks Repelled . | . . . . . Allies | -11 -10 -10 -9 -7 -------- Run | Yrd Mat Sub Rec Fac Total Allies . | . . . . . Largest Group . | . . . . . Highest-Rated Group . | . . . . . Highest-Rated Ally . | . . . . . Total Orders . | . . . . . Ally Attacks . | . . . . . Total Damage . | . . . . . Kills . | . . . . . Allies Corrupted . | . . . . . Allies Melted . | . . . . . Intel | -11 -10 -10 -9 -7 ------- Run | Yrd Mat Sub Rec Fac Robot Analysis Total . | . . . . . Derelict Logs Recovered 1 | . . 1 . . Drone Launches . | . . . . . Drone Recoveries . | . . . . . Exploration | -11 -10 -10 -9 -7 ------------- Run | Yrd Mat Sub Rec Fac Turns Passed 8004 | 56 1231 2066 810 3841 Spaces Moved 5560 | 45 844 1623 546 2502 Core 16 | 14 . . 2 . Treads . | . . . . . Legs . | . . . . . Wheels 5544 | 31 844 1623 544 2502 Hover . | . . . . . Flight . | . . . . . Fastest Speed 50 | 50 90 95 120 100 Average Speed 111 | 105 101 105 130 114 Slowest Speed 700 | 200 115 140 700 155 Overloaded Moves . | . . . . . Propulsion Burnouts . | . . . . . Robots Hopped . | . . . . . Cave-ins Triggered . | . . . . . Exploration Rate (%) 64 | 4 100 72 95 50 Regions Visited 4 Branch Regions 2 Pre-discovered Areas . | . . . . . Known Exits Taken . | . . . . . Unknown Exits Taken 4 | 1 1 1 1 . Scrap Searched 4 | . . 4 . . Spaces Dug . | . . . . . Terrain Destroyed 57 | . . 1 5 51 Melee . | . . . . . Projectile 6 | . . 1 5 . AOE 51 | . . . . 51 Terrain Rammed . | . . . . . Walls Destroyed . | . . . . . Machines Disabled . | . . . . . Actions | -11 -10 -10 -9 -7 --------- Run | Yrd Mat Sub Rec Fac Total 6748 | 50 1099 1867 592 3140 Wait 589 | . 145 142 4 298 Move 5556 | 44 843 1622 545 2502 Hop . | . . . . . Pick Up 78 | . 20 12 2 44 Fast Attach 26 | 6 3 1 2 14 Attach 33 | . 3 4 3 23 Detach . | . . . . . Swap 58 | . 7 12 2 37 Drop 72 | . 12 14 6 40 Fire 336 | . 66 60 28 182 Melee . | . . . . . Ram . | . . . . . Kick . | . . . . . Crush . | . . . . . Escape Stasis . | . . . . . Rewire . | . . . . . Trap . | . . . . . Miscellaneous . | . . . . . Route ------- -11/Scrapyard -10/Materials (discovered 6 exits: [*Mat x3] / [*Min x2] / [*Sub]) -10/Subcaves -9/Recycling -7/Factory (discovered 2 exits: [*Fac x2]) History --------- Turn | Location | Event 9 | -11/Scrapyard | Discovered new exit (range 15) 57 | -11/Scrapyard | Entered Materials 324 | -10/Materials | Build established: Mutant 478 | -10/Materials | Discovered new exit (range 15) 685 | -10/Materials | Discovered new exit (range 13) 864 | -10/Materials | Discovered new exit (range 10) 927 | -10/Materials | Discovered new exit (range 7) 1177 | -10/Materials | Discovered new exit (range 13) 1280 | -10/Materials | Discovered new exit (range 9) 1288 | -10/Materials | Entered Subcaves 1382 | -10/Subcaves | Shifting Twisted Machinery released Sub. Optics 1384 | -10/Subcaves | Shifting Twisted Machinery released Sub. Beam Cannon 1617 | -10/Subcaves | Learned location of 1 exit from Materials 2218 | -10/Subcaves | Disturbed a concealed Subdweller 2451 | -10/Subcaves | A swath of the cavern ceiling suddenly collapsed 2576 | -10/Subcaves | Shifting Twisted Machinery released Sub. Beam Cannon 2579 | -10/Subcaves | Shifting Twisted Machinery released Sub. Power Source 3061 | -10/Subcaves | Discovered new exit (range 12) 3073 | -10/Subcaves | Core integrity fell below 50% 3354 | -10/Subcaves | Entered Recycling 3838 | -9/Recycling | Discovered new exit (range 12) 3990 | -9/Recycling | Core integrity fell below 20% 4164 | -9/Recycling | Entered Factory 4164 | -7/Factory | Evolved 6 slots: Power x1, Propulsion x1, Utility x3, Weapon x1 4569 | -7/Factory | Build established: Scavenger-Tank 5577 | -7/Factory | Build established: Tank 6556 | -7/Factory | Build established: Scavenger-Tank 6788 | -7/Factory | Garrison activated, responded to threat 6792 | -7/Factory | Fabricated Arm. Huge Wheel? 6891 | -7/Factory | Discovered new exit (range 7) 6964 | -7/Factory | First assault squad dispatched 7138 | -7/Factory | Core integrity fell below 50% 7170 | -7/Factory | Lost 3 parts (1p1u1w) 7424 | -7/Factory | Repaired Lrg. Storage Unit 7793 | -7/Factory | Garrison activated, responded to threat 7930 | -7/Factory | Core integrity fell below 20% 7967 | -7/Factory | Lost 5 parts (2p1n1u1w) 7991 | -7/Factory | Discovered new exit (range 14) 8005 | -7/Factory | Destroyed by H-61 Shepherd with Heavy Assault Cannon Last Messages --------------- 07972_ Acquired 45 matter. 07974_ Acquired 8 matter. 07976_ Acquired 32 matter. 07979_ Acquired Particle Gun. 07980_ System corrupted: Energy discharge (-40). 07985_ Dropped Arm. Huge Wheel. 07987_ I-36 Angel sends out distress signal. 07991_ EXIT=FOUND 07994_ H-61 Shepherd calls for reinforcements. 07994_ ALERT: Hostile activity reported, dispatching reinforcements to area. 07994_ Com. Wheel destroyed. 07996_ System corrupted: Matter fused (-5). 07997_ Cld. Pulse Rifle destroyed. 07997_ Knocked back. 07999_ Slug penetrates Wall. 08004_ R-06 Scavenger collects Arm. Huge Wheel. 08004_ R-06 Scavenger destroyed. 08005_ Penetrated by Slug. 08005_ Core Shielding destroyed. Map ----- +----------------------------------------------------+ | ?????????????????????????????????????????????????? | | ?????????????????????????????????????????????????? | | ?????????????????????????????????????????????????? | | ?????????????????????????????????????????????????? | | ?????????????????????????????????????????????????? | | ?????????????????????????????????????????????????? | | ?????????????????????????????????????????????????? | | ?????????????????????????????????????????????????? | | ?????????????????????????????????????????????????? | | ?????????????????????????????????????????????????? | | ?????????????????????????????????????????????????? | | ?????????????????????????????????????????????????? | | ?????????????????????????????????????????????????? | | ?????????????????????????????????????????????????? | | ?????????????????????????????????????????????????? | | ?????????????????????????????????????????????????? | | ?????????????????????????????????????????????????? | | ###??????????????????????????????????????????????? | | #??????????????????????????????????????????????? | | #??????????????????????????????????????????????? | | #?????????#+#############+####?????????????????? | | #????????% #?????????????????? | | #???????? ##############????? | | #??????? %